fUST/lending_fUST_20250924
["ID","MTS","AMOUNT","RATE_DAILY","PERIOD"]
[387424632,1758725456105,-480.0,0.00020547,2]
[387424633,1758725456116,-686.32,0.00020547,2]
[387424634,1758725456125,-480.0,0.00020547,2]
[387424635,1758725456135,-2433.67790088,0.00020547,2]
[387424636,1758725456148,-546.54209912,0.00020547,2]
[387424637,1758725456158,-88.29380572,0.00020547,2]
[387424638,1758725456169,-391.70619428,0.00020547,2]
[387424639,1758725456178,-480.0,0.00020547,2]
[387424640,1758725456188,-680.18,0.00020547,2]
[387424641,1758725456197,-1619.27,0.00020547,2]
[387424642,1758725456207,-480.0,0.00020547,2]
[387424643,1758725456217,-480.0,0.00020547,2]
[387424644,1758725456227,-480.0,0.00020547,2]
[387424645,1758725456236,-480.0,0.00020547,2]
[387424646,1758725456245,-480.0,0.00020547,2]
[387424647,1758725456255,-480.0,0.00020547,2]
[387424648,1758725456264,-480.0,0.00020547,2]
[387424649,1758725456274,-480.0,0.00020547,2]
[387424650,1758725456283,-480.0,0.00020547,2]
[387424651,1758725456294,-430.22168496,0.00020568,2]
[387424652,1758725456304,-500.0,0.00020582,2]
[387424653,1758725456313,-396.3389459,0.00020582,2]
[387424654,1758725456330,-212.348892,0.00019726,2]
[387424655,1758725456340,-103.6610541,0.00020582,2]
[387424656,1758725456349,-500.0,0.00020582,2]
[387424657,1758725456360,-500.0,0.00020582,2]
[387424658,1758725456370,-500.0,0.00020582,2]
[387424659,1758725456381,-500.0,0.00020582,2]
[387424660,1758725456392,-500.0,0.00020582,2]
[387424661,1758725456402,-500.0,0.00020582,2]
[387424662,1758725456412,-500.0,0.00020582,2]
[387424663,1758725456422,-500.0,0.00020582,2]
[387424664,1758725456432,-500.0,0.00020582,2]
[387424665,1758725456442,-338.78181656,0.00020582,2]
[387424666,1758725456451,-595.0,0.00020644,2]
[387424667,1758725456461,-500.0,0.00020644,2]
[387424668,1758725456471,-420.0,0.00020697,2]
[387424669,1758725456481,-420.0,0.00020697,2]
[387424670,1758725456491,-420.0,0.00020697,2]
[387424671,1758725456500,-257.0,0.00020697,2]
[387424672,1758725456510,-480.0,0.00020821,2]
[387424673,1758725456520,-480.0,0.00020821,2]
[387424674,1758725456530,-197.7590981,0.00020821,2]
[387424675,1758725456540,-480.0,0.00020821,2]
[387424676,1758725456550,-480.0,0.00020821,2]
[387424677,1758725456560,-558.0548508,0.00020821,2]
[387424678,1758725456570,-480.0,0.00020821,2]
[387424679,1758725456580,-640.37,0.00020821,2]
[387424680,1758725456590,-480.0,0.00020821,2]
[387424681,1758725456600,-480.0,0.00020821,2]
[387424682,1758725456611,-480.0,0.00020821,2]
[387424683,1758725456620,-480.0,0.00020821,2]
[387424684,1758725456630,-480.0,0.00020821,2]
[387424685,1758725456641,-480.0,0.00020821,2]
[387424686,1758725456650,-551.05,0.00020821,2]
[387424687,1758725456659,-480.0,0.00020821,2]
[387424688,1758725456669,-272.77839123,0.00020821,2]
[387424689,1758725456678,-480.0,0.00020821,2]
[387424690,1758725456688,-480.0,0.00020821,2]
[387424691,1758725456698,-548.8,0.00020821,2]
[387424692,1758725456707,-776.23,0.00020821,2]
[387424693,1758725456716,-1471.99,0.00020821,2]
[387424694,1758725456726,-815.93,0.00020821,2]
[387424695,1758725456735,-1312.93,0.00020821,2]
[387424696,1758725456744,-480.0,0.00020821,2]
[387424697,1758725456754,-1039.69,0.00020821,2]
[387424698,1758725456763,-480.0,0.00020821,2]
[387424699,1758725456772,-480.0,0.00020821,2]
[387424700,1758725456782,-636.32,0.00020821,2]
[387424701,1758725456792,-480.0,0.00020821,2]
[387424702,1758725456884,-731.98,0.00020821,2]
[387424703,1758725456894,-16.0201674,0.00020821,2]
[387424704,1758725456982,-480.0,0.00019178,2]
[387424705,1758725456992,-483.25747613,0.00019178,2]
[387424706,1758725457002,-165.10459,0.00019352,2]
[387424707,1758725457011,-212.348892,0.00019352,2]
[387424708,1758725457021,-165.10459,0.00019452,2]
[387424709,1758725457030,-212.348892,0.00019452,2]
[387424710,1758725457040,-165.10459,0.00019726,2]
[387424711,1758725457049,-212.348892,0.00020273,2]
[387424712,1758725457059,-463.9798326,0.00020821,2]
[387424713,1758725457068,-1413.21,0.00020821,2]
[387424714,1758725457078,-843.65,0.00020821,2]
[387424715,1758725457087,-480.0,0.00020821,2]
[387424716,1758725457098,-177.044047,0.00020821,2]
[387424717,1758725457108,-177.044047,0.00020821,2]
[387424718,1758725457119,-177.044047,0.00020821,2]
[387424719,1758725457128,-177.044042,0.00020821,2]
[387424720,1758725457138,-480.0,0.00020821,2]
[387424721,1758725457147,-585.32,0.00020821,2]
[387424722,1758725457156,-483.2,0.00020821,2]
[387424723,1758725457166,-480.0,0.00020821,2]
[387424724,1758725457175,-480.0,0.00020821,2]
[387424725,1758725457184,-480.0,0.00020821,2]
[387424726,1758725457193,-242.74149543,0.00020821,2]
[387424727,1758725457203,-480.0,0.00020821,2]
[387424728,1758725457213,-480.0,0.00020821,2]
[387424729,1758725457222,-480.0,0.00020821,2]
[387424730,1758725457232,-480.0,0.00020821,2]
[387424731,1758725457241,-480.0,0.00020821,2]
[387424732,1758725457250,-660.82,0.00020821,2]
[387424733,1758725457262,-480.0,0.00020821,2]
[387424734,1758725457271,-480.0,0.00020821,2]
[387424735,1758725457281,-686.32,0.00020821,2]
[387424736,1758725457290,-480.0,0.00020821,2]
[387424737,1758725457300,-2980.22,0.00020821,2]
[387424738,1758725457309,-480.0,0.00020821,2]
[387424739,1758725457318,-480.0,0.00020821,2]
[387424740,1758725457328,-554.04676157,0.00020821,2]
[387424741,1758725457411,-212.348892,0.00019352,2]
[387424742,1758725457420,-212.348892,0.00019452,2]
[387424743,1758725457430,-212.348892,0.00019726,2]
[387424744,1758725457439,-212.348892,0.00019726,2]
[387424745,1758725457448,-165.10459,0.00020273,2]
[387424746,1758725457458,-212.348892,0.00020273,2]
[387424747,1758725457468,-126.13323843,0.00020821,2]
[387424748,1758725457477,-1619.27,0.00020821,2]
[387424749,1758725457486,-480.0,0.00020821,2]
[387424750,1758725457495,-480.0,0.00020821,2]
[387424751,1758725457506,-480.0,0.00020821,2]
[387424752,1758725457515,-480.0,0.00020821,2]
[387424753,1758725457524,-480.0,0.00020821,2]
[387424754,1758725457534,-480.0,0.00020821,2]
[387424755,1758725457543,-480.0,0.00020821,2]
[387424756,1758725457553,-480.0,0.00020821,2]
[387424757,1758725457562,-480.0,0.00020821,2]
[387424758,1758725457572,-165.10459,0.00020821,2]
[387424759,1758725457582,-165.10459,0.00020821,2]
[387424760,1758725457591,-165.10459,0.00020821,2]
[387424761,1758725457601,-212.348892,0.00020821,2]
[387424762,1758725457610,-165.104592,0.00020821,2]
[387424763,1758725457620,-212.348892,0.00020821,2]
[387424764,1758725457629,-595.0,0.00020918,2]
[387424765,1758725457639,-500.0,0.00020918,2]
[387424766,1758725457648,-586.1331603,0.00020932,2]
[387424767,1758725457657,-586.1331603,0.00020932,2]
[387424768,1758725457667,-586.1331603,0.00020932,2]
[387424769,1758725457676,-162.2253934,0.00020932,2]
[387424770,1758725457685,-162.2253934,0.00020932,2]
[387424771,1758725457695,-490.5815831,0.00020932,2]
[387424772,1758725457705,-162.2253934,0.00020932,2]
[387424773,1758725457714,-162.2253934,0.00020932,2]
[387424774,1758725457723,-586.1331603,0.00020959,2]
[387424775,1758725457732,-296.7110155,0.00020959,2]
[387424776,1758725457741,-296.7110155,0.00020959,2]
[387424777,1758725457751,-296.7110155,0.00020959,2]
[387424778,1758725457760,-3041.47999553,0.00020972,2]
[387424779,1758725457769,-485.29903969,0.00021016,2]
[387424780,1758725457779,-84.51934003,0.00021049,2]
[387424781,1758725457796,-212.348892,0.00020273,2]
[387424782,1758725457806,-1915.48065997,0.00021049,2]
[387424783,1758725457815,-480.0,0.00021095,2]
[387424784,1758725457824,-480.0,0.00021095,2]
[387424785,1758725457833,-313.66233662,0.00021095,2]
[387424786,1758725457843,-480.0,0.00021095,2]
[387424787,1758725457853,-640.37,0.00021095,2]
[387424788,1758725457864,-480.0,0.00021095,2]
[387424789,1758725457874,-278.16,0.00021095,2]
[387424790,1758725457883,-509.82652889,0.00021095,2]
[387424791,1758725457893,-160.013068,0.00021095,2]
[387424792,1758725457902,-480.0,0.00021095,2]
[387424793,1758725457912,-480.0,0.00021095,2]
[387424794,1758725457921,-127.24051272,0.00021095,2]
[387424795,1758725457934,-423.80948728,0.00021095,2]
[387424796,1758725457943,-480.0,0.00021095,2]
[387424797,1758725457953,-480.0,0.00021095,2]
[387424798,1758725457962,-616.31017542,0.00021095,2]
[387424799,1758725457972,-548.8,0.00021095,2]
[387424800,1758725457982,-776.23,0.00021095,2]
[387424801,1758725457992,-1471.99,0.00021095,2]
[387424802,1758725458002,-815.93,0.00021095,2]
[387424803,1758725458011,-1312.93,0.00021095,2]
[387424804,1758725458021,-480.0,0.00021095,2]
[387424805,1758725458030,-1039.69,0.00021095,2]
[387424806,1758725458040,-480.0,0.00021095,2]
[387424807,1758725458049,-480.0,0.00021095,2]
[387424808,1758725458059,-636.32,0.00021095,2]
[387424809,1758725458069,-480.0,0.00021095,2]
[387424810,1758725458078,-731.98,0.00021095,2]
[387424811,1758725458087,-480.0,0.00021095,2]
[387424812,1758725458097,-1413.21,0.00021095,2]
[387424813,1758725458106,-843.65,0.00021095,2]
[387424814,1758725458119,-480.0,0.00021095,2]
[387424815,1758725458128,-480.0,0.00021095,2]
[387424816,1758725458137,-585.32,0.00021095,2]
[387424817,1758725458147,-483.2,0.00021095,2]
[387424818,1758725458156,-480.0,0.00021095,2]
[387424819,1758725458167,-480.0,0.00021095,2]
[387424820,1758725458178,-369.71323152,0.00021095,2]
[387424821,1758725458189,-480.0,0.00021095,2]
[387424822,1758725458198,-480.0,0.00021095,2]
[387424823,1758725458208,-480.0,0.00021095,2]
[387424824,1758725458218,-480.0,0.00021095,2]
[387424825,1758725458227,-480.0,0.00021095,2]
[387424826,1758725458237,-660.82,0.00021095,2]
[387424827,1758725458247,-480.0,0.00021095,2]
[387424828,1758725458257,-480.0,0.00021095,2]
[387424829,1758725458267,-686.32,0.00021095,2]
[387424830,1758725458276,-480.0,0.00021095,2]
[387424831,1758725458286,-1208.02580908,0.00021095,2]
[387424832,1758725658165,288.0,0.00029424,120]
[387424833,1758725761879,155.3,0.0002393,30]
[387424834,1758725849400,154.46,0.00023716,30]
[387424838,1758726166985,153.61,0.00023799,30]
[387424844,1758726424018,-152.0,0.00018074,2]
[387424845,1758726446461,357.78732864,0.0002011,13]
[387424888,1758726632752,-300.0,0.00018998,2]
[387424890,1758726632762,-171.98987529,0.00018998,2]
[387424895,1758726632799,-128.01012471,0.00018998,2]
[387424897,1758726632809,-300.0,0.00018998,2]
[387424898,1758726632819,-340.40371102,0.00018999,2]
[387424901,1758726632828,-1000.0,0.00018999,2]
[387424903,1758726632838,-1000.0,0.00018999,2]
[387424904,1758726632848,-1000.0,0.00018999,2]
[387424906,1758726632857,-1000.0,0.00018999,2]
[387424909,1758726632867,-1000.0,0.00018999,2]
[387424910,1758726632876,-1000.0,0.00018999,2]
[387424911,1758726632885,-1000.0,0.00018999,2]
[387424912,1758726632895,-1000.0,0.00018999,2]
[387424913,1758726632904,-1000.0,0.00018999,2]
[387424914,1758726632913,-1000.0,0.00018999,2]
[387424915,1758726632922,-1000.0,0.00018999,2]
[387424916,1758726632931,-1000.0,0.00018999,2]
[387424917,1758726632941,-1000.0,0.00018999,2]
[387424918,1758726632950,-1000.0,0.00018999,2]
[387424919,1758726632959,-1000.0,0.00018999,2]
[387424920,1758726632968,-1000.0,0.00018999,2]
[387424921,1758726632977,-215.72200275,0.00018999,2]
[387424922,1758726632986,-942.9640753,0.00019,2]
[387424923,1758726632995,-500.0,0.00019,2]
[387424924,1758726633004,-339.75369671,0.00019078,2]
[387424925,1758726633013,-500.0,0.00019177,2]
[387424926,1758726633023,-165.6763876,0.00019177,2]
[387424927,1758726633033,-500.0,0.00019177,2]
[387424928,1758726633043,-200.0,0.00019177,2]
[387424929,1758726633054,-171.90317386,0.00019177,2]
[387424930,1758726633065,-500.0,0.00019177,2]
[387424931,1758726633075,-500.0,0.00019177,2]
[387424932,1758726633085,-500.0,0.00019177,2]
[387424934,1758726633095,-500.0,0.00019177,2]
[387424936,1758726633105,-500.0,0.00019177,2]
[387424938,1758726633115,-500.0,0.00019177,2]
[387424940,1758726633125,-500.0,0.00019177,2]
[387424942,1758726633135,-500.0,0.00019177,2]
[387424944,1758726633145,-493.47750537,0.00019177,2]
[387424946,1758726633155,-500.0,0.00019177,2]
[387424948,1758726633165,-500.0,0.00019177,2]
[387424950,1758726633175,-500.0,0.00019177,2]
[387424952,1758726633185,-480.59350214,0.00019178,2]
[387424954,1758726633195,-485.73007938,0.00019178,2]
[387424956,1758726633204,-480.0,0.00019178,2]
[387424958,1758726633214,-480.0,0.00019178,2]
[387424960,1758726633224,-480.0,0.00019178,2]
[387424962,1758726633233,-480.0,0.00019178,2]
[387424964,1758726633243,-480.0,0.00019178,2]
[387424966,1758726633252,-480.0,0.00019178,2]
[387424967,1758726633262,-480.0,0.00019178,2]
[387424969,1758726633272,-480.0,0.00019178,2]
[387424970,1758726633282,-480.0,0.00019178,2]
[387424972,1758726633292,-480.0,0.00019178,2]
[387424974,1758726633302,-480.0,0.00019178,2]
[387424976,1758726633312,-480.0,0.00019178,2]
[387424978,1758726633321,-480.0,0.00019178,2]
[387424980,1758726633332,-480.0,0.00019178,2]
[387424982,1758726633342,-482.29381316,0.00019178,2]
[387424984,1758726633352,-480.0,0.00019178,2]
[387424986,1758726633362,-480.0,0.00019178,2]
[387424988,1758726633373,-518.60200489,0.00019178,2]
[387424990,1758726633383,-490.12813969,0.00019178,2]
[387424992,1758726633393,-604.80489222,0.00019178,2]
[387424993,1758726633403,-480.0,0.00019178,2]
[387424994,1758726633413,-499.22372588,0.00019178,2]
[387424995,1758726633423,-480.0,0.00019178,2]
[387424996,1758726633432,-480.0,0.00019178,2]
[387424997,1758726633441,-484.26902332,0.00019178,2]
[387424998,1758726633451,-156.89805978,0.00019178,2]
[387424999,1758726633460,-495.78630157,0.00019178,2]
[387425000,1758726633470,-344.66337903,0.00019178,2]
[387425001,1758726633479,-574.11963063,0.00019178,2]
[387425002,1758726633489,-480.0,0.00019178,2]
[387425003,1758726633498,-300.29331099,0.00019178,2]
[387425004,1758726633512,-179.70668901,0.00019178,2]
[387425006,1758726633525,-438.28438396,0.00019178,2]
[387425008,1758726633536,-41.71561604,0.00019178,2]
[387425010,1758726633546,-480.0,0.00019178,2]
[387425012,1758726633556,-248.62462591,0.00019178,2]
[387425014,1758726633586,-231.37537409,0.00019178,2]
[387425015,1758726633598,-604.91974271,0.00019178,2]
[387425016,1758726633609,-96.58769391,0.00019178,2]
[387425031,1758726638381,699.0,0.0001935,60]
[387425033,1758726638696,-414.685,0.00019177,2]
[387425035,1758726638849,-85.315,0.00019177,2]
[387425036,1758726638860,-500.0,0.00019177,2]
[387425037,1758726638870,-500.0,0.00019177,2]
[387425038,1758726638880,-500.0,0.00019177,2]
[387425039,1758726638890,-500.0,0.00019177,2]
[387425040,1758726638900,-338.89443593,0.00019177,2]
[387425041,1758726638910,-500.0,0.00019177,2]
[387425042,1758726638920,-500.0,0.00019177,2]
[387425043,1758726638930,-383.41230609,0.00019178,2]
[387425044,1758726638940,-480.0,0.00019178,2]
[387425045,1758726638951,-480.0,0.00019178,2]
[387425046,1758726638960,-480.0,0.00019178,2]
[387425047,1758726638970,-480.0,0.00019178,2]
[387425048,1758726638980,-480.0,0.00019178,2]
[387425049,1758726638990,-480.0,0.00019178,2]
[387425050,1758726638999,-480.0,0.00019178,2]
[387425051,1758726639009,-480.0,0.00019178,2]
[387425052,1758726639018,-480.0,0.00019178,2]
[387425053,1758726639028,-480.0,0.00019178,2]
[387425054,1758726639037,-480.0,0.00019178,2]
[387425055,1758726639047,-480.0,0.00019178,2]
[387425056,1758726639056,-480.0,0.00019178,2]
[387425057,1758726639066,-480.0,0.00019178,2]
[387425058,1758726639076,-480.0,0.00019178,2]
[387425059,1758726639085,-480.0,0.00019178,2]
[387425060,1758726639094,-480.0,0.00019178,2]
[387425061,1758726639104,-480.0,0.00019178,2]
[387425062,1758726639114,-480.0,0.00019178,2]
[387425063,1758726639124,-480.0,0.00019178,2]
[387425064,1758726639135,-1000.0,0.00019178,2]
[387425065,1758726639146,-480.0,0.00019178,2]
[387425066,1758726639157,-488.48562647,0.00019178,2]
[387425067,1758726639167,-480.0,0.00019178,2]
[387425068,1758726639177,-480.0,0.00019178,2]
[387425069,1758726639187,-480.0,0.00019178,2]
[387425070,1758726639197,-480.0,0.00019178,2]
[387425071,1758726639207,-480.0,0.00019178,2]
[387425072,1758726639218,-480.0,0.00019178,2]
[387425073,1758726639228,-480.0,0.00019178,2]
[387425074,1758726639238,-480.0,0.00019178,2]
[387425075,1758726639247,-212.28233121,0.00019178,2]
[387425076,1758726639257,-480.0,0.00019178,2]
[387425077,1758726639267,-480.0,0.00019178,2]
[387425078,1758726639276,-480.0,0.00019178,2]
[387425079,1758726639286,-480.16666827,0.00019178,2]
[387425080,1758726639296,-480.0,0.00019178,2]
[387425081,1758726639306,-497.88,0.00019178,2]
[387425082,1758726639316,-480.0,0.00019178,2]
[387425083,1758726639325,-480.0,0.00019178,2]
[387425084,1758726639335,-480.0,0.00019178,2]
[387425085,1758726639346,-480.0,0.00019178,2]
[387425086,1758726639356,-480.0,0.00019178,2]
[387425087,1758726639366,-480.0,0.00019178,2]
[387425088,1758726639377,-182.49476164,0.00019178,2]
[387425089,1758726639387,-480.0,0.00019178,2]
[387425090,1758726639397,-480.0,0.00019178,2]
[387425091,1758726639407,-480.0,0.00019178,2]
[387425092,1758726639417,-480.0,0.00019178,2]
[387425093,1758726639427,-480.0,0.00019178,2]
[387425094,1758726639436,-480.0,0.00019178,2]
[387425095,1758726639446,-480.0,0.00019178,2]
[387425096,1758726639459,-162.10687454,0.00019178,2]
[387425097,1758726639468,-480.0,0.00019178,2]
[387425098,1758726639478,-481.19761199,0.00019178,2]
[387425099,1758726639488,-480.0,0.00019178,2]
[387425100,1758726639497,-482.64049258,0.00019178,2]
[387425101,1758726639507,-480.0,0.00019178,2]
[387425102,1758726639517,-480.0,0.00019178,2]
[387425103,1758726639526,-486.1050287,0.00019178,2]
[387425104,1758726639536,-480.0,0.00019178,2]
[387425105,1758726639552,-480.0,0.00019178,2]
[387425106,1758726639561,-480.0,0.00019178,2]
[387425107,1758726639570,-480.0,0.00019178,2]
[387425108,1758726639580,-480.0,0.00019178,2]
[387425109,1758726639590,-480.0,0.00019178,2]
[387425110,1758726639599,-480.0,0.00019178,2]
[387425111,1758726639609,-480.0,0.00019178,2]
[387425112,1758726639618,-480.0,0.00019178,2]
[387425113,1758726639628,-480.0,0.00019178,2]
[387425114,1758726639638,-480.0,0.00019178,2]
[387425115,1758726639648,-265.60373276,0.00019178,2]
[387425116,1758726639658,-480.0,0.00019178,2]
[387425117,1758726639668,-520.79269305,0.00019178,2]
[387425118,1758726639678,-487.72028717,0.00019178,2]
[387425119,1758726639688,-482.16205145,0.00019178,2]
[387425120,1758726639699,-480.0,0.00019178,2]
[387425121,1758726639708,-204.24,0.00019178,2]
[387425122,1758726639718,-480.0,0.00019178,2]
[387425123,1758726639727,-480.0,0.00019178,2]
[387425124,1758726639737,-480.0,0.00019178,2]
[387425125,1758726639747,-500.0,0.00019178,2]
[387425126,1758726639756,-480.0,0.00019178,2]
[387425127,1758726639766,-480.0,0.00019178,2]
[387425128,1758726639776,-481.63191442,0.00019178,2]
[387425129,1758726639786,-480.0,0.00019178,2]
[387425130,1758726639796,-480.0,0.00019178,2]
[387425131,1758726639806,-480.0,0.00019178,2]
[387425132,1758726639815,-480.0,0.00019178,2]
[387425133,1758726639825,-480.0,0.00019178,2]
[387425134,1758726639835,-480.0,0.00019178,2]
[387425135,1758726639845,-480.0,0.00019178,2]
[387425136,1758726639855,-480.0,0.00019178,2]
[387425137,1758726639864,-480.0,0.00019178,2]
[387425138,1758726639874,-688.07,0.00019178,2]
[387425139,1758726639884,-480.0,0.00019178,2]
[387425140,1758726639894,-370.81027416,0.00019178,2]
[387425141,1758726639906,-480.65331481,0.00019178,2]
[387425142,1758726639917,-480.0,0.00019178,2]
[387425143,1758726639927,-480.0,0.00019178,2]
[387425144,1758726640046,-480.0,0.00019178,2]
[387425145,1758726640061,-480.0,0.00019178,2]
[387425146,1758726640071,-480.0,0.00019178,2]
[387425147,1758726640081,-480.0,0.00019178,2]
[387425148,1758726640091,-63.0253716,0.00019178,2]
[387425150,1758726640106,-446.2946284,0.00019178,2]
[387425152,1758726640116,-480.0,0.00019178,2]
[387425154,1758726640125,-480.0,0.00019178,2]
[387425155,1758726640138,-480.0,0.00019178,2]
[387425156,1758726640148,-480.0,0.00019178,2]
[387425157,1758726640158,-480.0,0.00019178,2]
[387425158,1758726640168,-480.0,0.00019178,2]
[387425160,1758726640177,-480.0,0.00019178,2]
[387425162,1758726640188,-480.0,0.00019178,2]
[387425164,1758726640199,-480.0,0.00019178,2]
[387425166,1758726640208,-480.0,0.00019178,2]
[387425167,1758726640218,-480.0,0.00019178,2]
[387425168,1758726640228,-480.0,0.00019178,2]
[387425169,1758726640238,-480.0,0.00019178,2]
[387425170,1758726640248,-493.08473126,0.00019178,2]
[387425172,1758726640258,-480.0,0.00019178,2]
[387425174,1758726640268,-480.0,0.00019178,2]
[387425175,1758726640278,-480.0,0.00019178,2]
[387425176,1758726640288,-480.0,0.00019178,2]
[387425177,1758726640298,-480.0,0.00019178,2]
[387425178,1758726640308,-480.0,0.00019178,2]
[387425179,1758726640318,-480.0,0.00019178,2]
[387425180,1758726640327,-2453.98,0.00019178,2]
[387425181,1758726640337,-480.0,0.00019178,2]
[387425182,1758726640347,-480.0,0.00019178,2]
[387425183,1758726640358,-480.0,0.00019178,2]
[387425184,1758726640368,-480.0,0.00019178,2]
[387425185,1758726640378,-480.0,0.00019178,2]
[387425186,1758726640389,-480.0,0.00019178,2]
[387425187,1758726640400,-1110.29,0.00019178,2]
[387425188,1758726640410,-480.0,0.00019178,2]
[387425189,1758726640420,-480.0,0.00019178,2]
[387425190,1758726640430,-480.0,0.00019178,2]
[387425191,1758726640440,-480.0,0.00019178,2]
[387425192,1758726640450,-480.0,0.00019178,2]
[387425193,1758726640459,-480.0,0.00019178,2]
[387425194,1758726640469,-480.0,0.00019178,2]
[387425195,1758726640479,-480.0,0.00019178,2]
[387425196,1758726640490,-480.0,0.00019178,2]
[387425197,1758726640500,-480.0,0.00019178,2]
[387425198,1758726640512,-480.0,0.00019178,2]
[387425199,1758726640522,-480.0,0.00019178,2]
[387425200,1758726640531,-480.0,0.00019178,2]
[387425201,1758726640540,-480.0,0.00019178,2]
[387425202,1758726640550,-480.0,0.00019178,2]
[387425203,1758726640560,-497.29764059,0.00019178,2]
[387425204,1758726640570,-480.0,0.00019178,2]
[387425205,1758726640580,-275.27265001,0.00019178,2]
[387425206,1758726640594,-215.71195105,0.00019178,2]
[387425207,1758726640604,-142.62586253,0.00019178,2]
[387425212,1758726641691,-337.37413747,0.00019178,2]
[387425213,1758726641700,-480.0,0.00019178,2]
[387425214,1758726641710,-480.0,0.00019178,2]
[387425215,1758726641720,-480.0,0.00019178,2]
[387425216,1758726641729,-480.0,0.00019178,2]
[387425217,1758726641739,-480.0,0.00019178,2]
[387425218,1758726641749,-500.0,0.00019178,2]
[387425219,1758726641759,-500.0,0.00019178,2]
[387425220,1758726641769,-500.0,0.00019178,2]
[387425221,1758726641778,-606.24,0.00019178,2]
[387425222,1758726641788,-480.0,0.00019178,2]
[387425223,1758726641798,-1101.16,0.00019178,2]
[387425224,1758726641807,-480.0,0.00019178,2]
[387425225,1758726641817,-658.08,0.00019178,2]
[387425226,1758726641827,-480.0,0.00019178,2]
[387425227,1758726641837,-480.0,0.00019178,2]
[387425228,1758726641847,-480.0,0.00019178,2]
[387425229,1758726641857,-216.1026487,0.00019178,2]
[387425230,1758726641866,-480.0,0.00019178,2]
[387425231,1758726641876,-710.14,0.00019178,2]
[387425232,1758726641887,-480.0,0.00019178,2]
[387425233,1758726641897,-480.0,0.00019178,2]
[387425234,1758726641907,-480.0,0.00019178,2]
[387425235,1758726641916,-480.0,0.00019178,2]
[387425236,1758726641927,-480.0,0.00019178,2]
[387425237,1758726641936,-480.0,0.00019178,2]
[387425238,1758726641946,-480.0,0.00019178,2]
[387425239,1758726641955,-480.0,0.00019178,2]
[387425240,1758726641965,-480.0,0.00019178,2]
[387425241,1758726641976,-537.736805,0.00019178,2]
[387425242,1758726641985,-480.0,0.00019178,2]
[387425243,1758726641995,-480.0,0.00019178,2]
[387425244,1758726642004,-480.0,0.00019178,2]
[387425245,1758726642015,-480.0,0.00019178,2]
[387425246,1758726642025,-480.0,0.00019178,2]
[387425247,1758726642034,-480.0,0.00019178,2]
[387425248,1758726642044,-480.0,0.00019178,2]
[387425249,1758726642053,-480.0,0.00019178,2]
[387425250,1758726642062,-480.0,0.00019178,2]
[387425251,1758726642072,-480.0,0.00019178,2]
[387425252,1758726642081,-480.0,0.00019178,2]
[387425253,1758726642090,-480.0,0.00019178,2]
[387425254,1758726642099,-480.0,0.00019178,2]
[387425255,1758726642108,-484.53749961,0.00019178,2]
[387425256,1758726642118,-480.0,0.00019178,2]